fUST/lending_fUST_20260112
["ID","MTS","AMOUNT","RATE_DAILY","PERIOD"]
[401447950,1768229433166,-500.0,0.00013269,2]
[401447951,1768229433175,-500.0,0.00013269,2]
[401447952,1768229433184,-500.0,0.00013269,2]
[401447953,1768229433193,-500.0,0.00013269,2]
[401447954,1768229433202,-500.0,0.00013269,2]
[401447955,1768229433211,-500.0,0.00013269,2]
[401447956,1768229433220,-500.0,0.00013269,2]
[401447957,1768229433230,-500.0,0.00013269,2]
[401447958,1768229433239,-500.0,0.00013269,2]
[401447959,1768229433248,-500.0,0.00013269,2]
[401447960,1768229433257,-500.0,0.00013269,2]
[401447961,1768229433265,-500.0,0.00013269,2]
[401447962,1768229433274,-500.0,0.00013269,2]
[401447963,1768229433283,-500.0,0.00013269,2]
[401447965,1768229433293,-500.0,0.00013269,2]
[401447967,1768229433302,-500.0,0.00013269,2]
[401447969,1768229433311,-500.0,0.00013269,2]
[401447971,1768229433322,-500.0,0.00013269,2]
[401447972,1768229433331,-500.0,0.00013269,2]
[401447974,1768229433340,-500.0,0.00013269,2]
[401447976,1768229433349,-500.0,0.00013269,2]
[401447978,1768229433358,-500.0,0.00013269,2]
[401447980,1768229433368,-500.0,0.00013269,2]
[401447982,1768229433377,-500.0,0.00013269,2]
[401447984,1768229433387,-500.0,0.00013269,2]
[401447986,1768229433397,-500.0,0.00013269,2]
[401447988,1768229433409,-500.0,0.00013269,2]
[401447990,1768229433418,-500.0,0.00013269,2]
[401447992,1768229433427,-500.0,0.00013269,2]
[401447994,1768229433437,-500.0,0.00013269,2]
[401447996,1768229433446,-500.0,0.00013269,2]
[401447998,1768229433455,-500.0,0.00013269,2]
[401448000,1768229433464,-500.0,0.00013269,2]
[401448002,1768229433474,-500.0,0.00013269,2]
[401448004,1768229433484,-500.0,0.00013269,2]
[401448006,1768229433494,-500.0,0.00013269,2]
[401448008,1768229433503,-500.0,0.00013269,2]
[401448010,1768229433512,-500.0,0.00013269,2]
[401448012,1768229433522,-500.0,0.00013269,2]
[401448014,1768229433531,-500.0,0.00013269,2]
[401448016,1768229433540,-500.0,0.00013269,2]
[401448018,1768229433549,-500.0,0.00013269,2]
[401448020,1768229433558,-500.0,0.00013269,2]
[401448022,1768229433567,-413.32580862,0.00013269,2]
[401448024,1768229433576,-500.0,0.00013269,2]
[401448026,1768229433587,-500.0,0.00013269,2]
[401448028,1768229433595,-500.0,0.00013269,2]
[401448030,1768229433604,-500.0,0.00013269,2]
[401448032,1768229433613,-500.0,0.00013269,2]
[401448034,1768229433622,-500.0,0.00013269,2]
[401448036,1768229433632,-500.0,0.00013269,2]
[401448038,1768229433641,-500.0,0.00013269,2]
[401448040,1768229433653,-500.0,0.00013269,2]
[401448042,1768229433662,-500.0,0.00013269,2]
[401448044,1768229433671,-500.0,0.00013269,2]
[401448046,1768229433680,-500.0,0.00013269,2]
[401448048,1768229433689,-500.0,0.00013269,2]
[401448050,1768229433698,-500.0,0.00013269,2]
[401448052,1768229433707,-500.0,0.00013269,2]
[401448054,1768229433716,-500.0,0.00013269,2]
[401448056,1768229433724,-500.0,0.00013269,2]
[401448058,1768229433733,-500.0,0.00013269,2]
[401448060,1768229433742,-500.0,0.00013269,2]
[401448062,1768229433751,-500.0,0.00013269,2]
[401448064,1768229433760,-569.93914699,0.00013269,2]
[401448067,1768229433769,-500.0,0.00013269,2]
[401448069,1768229433783,-500.0,0.00013269,2]
[401448071,1768229433792,-518.42227309,0.00013269,2]
[401448073,1768229433801,-518.42227309,0.00013269,2]
[401448075,1768229433811,-500.0,0.00013269,2]
[401448077,1768229433820,-518.42227309,0.00013269,2]
[401448079,1768229433829,-518.42227309,0.00013269,2]
[401448081,1768229433838,-518.42227309,0.00013269,2]
[401448082,1768229433848,-518.42227309,0.00013269,2]
[401448085,1768229433858,-518.42227309,0.00013269,2]
[401448086,1768229433867,-518.42227309,0.00013269,2]
[401448088,1768229433876,-518.42227309,0.00013269,2]
[401448091,1768229433886,-518.42227309,0.00013269,2]
[401448092,1768229433897,-500.0,0.00013269,2]
[401448095,1768229433907,-518.42227309,0.00013269,2]
[401448096,1768229433918,-518.42227309,0.00013269,2]
[401448099,1768229433928,-155.50062125,0.00013269,2]
[401448101,1768229433937,-518.42227309,0.00013269,2]
[401448102,1768229433947,-518.42227309,0.00013269,2]
[401448103,1768229433957,-518.42227309,0.00013269,2]
[401448104,1768229433966,-518.42227309,0.00013269,2]
[401448105,1768229433975,-518.42227309,0.00013269,2]
[401448106,1768229433991,-518.42227309,0.00013269,2]
[401448107,1768229434001,-518.42227309,0.00013269,2]
[401448108,1768229434011,-518.42227309,0.00013269,2]
[401448109,1768229434020,-518.42227309,0.00013269,2]
[401448110,1768229434029,-518.42227309,0.00013269,2]
[401448111,1768229434039,-518.42227309,0.00013269,2]
[401448112,1768229434050,-518.42227309,0.00013269,2]
[401448113,1768229434061,-518.42227309,0.00013269,2]
[401448114,1768229434070,-518.42227309,0.00013269,2]
[401448115,1768229434079,-518.42227309,0.00013269,2]
[401448116,1768229434089,-518.42227309,0.00013269,2]
[401448117,1768229434098,-518.42227309,0.00013269,2]
[401448118,1768229434107,-518.42227309,0.00013269,2]
[401448119,1768229434117,-518.42227309,0.00013269,2]
[401448120,1768229434127,-518.42227309,0.00013269,2]
[401448121,1768229434137,-518.42227309,0.00013269,2]
[401448122,1768229434148,-518.42227309,0.00013269,2]
[401448123,1768229434157,-518.42227315,0.00013269,2]
[401448124,1768229434167,-300.0,0.00013269,2]
[401448125,1768229434176,-7767.37715324,0.00013269,2]
[401448161,1768229438516,-27988.2416234,0.00013269,2]
[401448163,1768229438528,-1197.57370402,0.00013269,2]
[401448166,1768229438539,-2317.31063124,0.00013269,2]
[401448168,1768229438551,-3913.17855935,0.00013269,2]
[401448170,1768229438562,-3845.56230716,0.00013269,2]
[401448172,1768229438573,-471.47618623,0.00013269,2]
[401448174,1768229438585,-2499.27983536,0.00013269,2]
[401448176,1768229438594,-500.0,0.0001327,2]
[401448177,1768229438604,-500.0,0.00013273,2]
[401448179,1768229438613,-500.0,0.00013273,2]
[401448181,1768229438622,-500.0,0.00013273,2]
[401448183,1768229438631,-500.0,0.00013273,2]
[401448185,1768229438641,-500.0,0.00013273,2]
[401448188,1768229438650,-500.0,0.00013421,2]
[401448189,1768229438660,-500.0,0.00013421,2]
[401448192,1768229438669,-500.0,0.00013422,2]
[401448194,1768229438678,-500.0,0.00013422,2]
[401448196,1768229438688,-500.0,0.00013544,2]
[401448198,1768229438697,-532.05033345,0.00013558,2]
[401448200,1768229438707,-250.0,0.00013558,2]
[401448202,1768229438716,-500.0,0.00013558,2]
[401448204,1768229438726,-250.0,0.00013558,2]
[401448206,1768229438735,-500.0,0.00013559,2]
[401448208,1768229438744,-150.4763442,0.00013559,2]
[401448210,1768229438754,-500.0,0.00013559,2]
[401448212,1768229438763,-470.19448082,0.00013695,2]
[401448214,1768229438773,-151.0,0.00013695,2]
[401448216,1768229438782,-151.0,0.00013695,2]
[401448218,1768229438791,-151.0,0.00013695,2]
[401448220,1768229438803,-151.0,0.00013695,2]
[401448222,1768229438812,-234.756668,0.00013695,2]
[401448224,1768229438821,-205.1137029,0.00013696,2]
[401448226,1768229438830,-200.0,0.00013696,2]
[401448228,1768229438841,-151.0,0.00013697,2]
[401448230,1768229438851,-500.0,0.00013698,2]
[401448232,1768229438861,-436.72021913,0.00013698,2]
[401448234,1768229438870,-156.675716,0.00013699,2]
[401448236,1768229438879,-156.675716,0.00013699,2]
[401448238,1768229438889,-156.675716,0.00013699,2]
[401448240,1768229438901,-156.675716,0.00013699,2]
[401448242,1768229438913,-156.675716,0.00013699,2]
[401448244,1768229438923,-156.675716,0.00013699,2]
[401448246,1768229438932,-156.675716,0.00013699,2]
[401448248,1768229438944,-156.675716,0.00013699,2]
[401448250,1768229438954,-156.675716,0.00013699,2]
[401448252,1768229438964,-156.675716,0.00013699,2]
[401448254,1768229438974,-156.675716,0.00013699,2]
[401448256,1768229438985,-156.675716,0.00013699,2]
[401448258,1768229438994,-156.675716,0.00013699,2]
[401448260,1768229439004,-156.675716,0.00013699,2]
[401448262,1768229439014,-156.675716,0.00013699,2]
[401448264,1768229439024,-156.675716,0.00013699,2]
[401448266,1768229439035,-156.675716,0.00013699,2]
[401448268,1768229439045,-156.675716,0.00013699,2]
[401448270,1768229439055,-156.675716,0.00013699,2]
[401448273,1768229439066,-156.675712,0.00013699,2]
[401448275,1768229439077,-151.0,0.00013699,2]
[401448276,1768229439086,-151.0,0.00013699,2]
[401448278,1768229439095,-151.0,0.00013699,2]
[401448280,1768229439105,-151.0,0.00013699,2]
[401448283,1768229439115,-188.087388,0.00013699,2]
[401448285,1768229439125,-500.0,0.00013699,2]
[401448286,1768229439134,-500.0,0.00013699,2]
[401448289,1768229439144,-500.0,0.00013699,2]
[401448290,1768229439155,-500.0,0.00013699,2]
[401448292,1768229439165,-500.0,0.00013699,2]
[401448294,1768229439174,-500.0,0.00013699,2]
[401448296,1768229439183,-500.0,0.00013699,2]
[401448298,1768229439193,-500.0,0.00013699,2]
[401448300,1768229439202,-500.0,0.00013699,2]
[401448302,1768229439211,-500.0,0.00013699,2]
[401448304,1768229439220,-500.0,0.00013699,2]
[401448306,1768229439229,-500.0,0.00013699,2]
[401448308,1768229439239,-161.93217431,0.00013699,2]
[401448310,1768229439248,-500.0,0.00013699,2]
[401448312,1768229439257,-500.0,0.00013699,2]
[401448314,1768229439266,-172.03885766,0.00013699,2]
[401448316,1768229439275,-500.0,0.00013699,2]
[401448318,1768229439285,-278.58612381,0.00013818,2]
[401448320,1768229439294,-500.0,0.00013821,2]
[401448322,1768229439304,-170.16316784,0.00013821,2]
[401448324,1768229439314,-465.81779273,0.00013821,2]
[401448326,1768229439323,-301.55676008,0.00013821,2]
[401448328,1768229439331,-927.2997855,0.00013821,2]
[401448330,1768229439340,-272.64534256,0.00013834,2]
[401448332,1768229439349,-162.0,0.00013969,2]
[401448334,1768229439358,-250.0,0.00013969,2]
[401448336,1768229439367,-194.43910051,0.00014106,2]
[401448338,1768229439376,-1424.1854098,0.00014172,2]
[401448340,1768229439385,-500.0,0.00014247,2]
[401448342,1768229439394,-500.0,0.00014247,2]
[401448344,1768229439405,-1000.0,0.00014247,2]
[401448346,1768229439415,-500.0,0.00014247,2]
[401448348,1768229439424,-1000.00562213,0.00014247,2]
[401448350,1768229439434,-318.42738177,0.00014247,2]
[401448352,1768229439443,-1000.0,0.00014247,2]
[401448354,1768229439452,-500.0,0.00014247,2]
[401448356,1768229439462,-250.0,0.00014247,2]
[401448358,1768229439471,-1000.0,0.00014247,2]
[401448360,1768229439480,-1000.0,0.00014247,2]
[401448362,1768229439489,-1000.0,0.00014247,2]
[401448364,1768229439498,-300.0,0.00014438,2]
[401448366,1768229439507,-300.0,0.00014438,2]
[401448368,1768229439517,-5000.0,0.0001451,2]
[401448370,1768229439527,-280.96332476,0.00014564,2]
[401448372,1768229439536,-500.0,0.00014795,2]
[401448374,1768229439545,-500.0,0.00014795,2]
[401448376,1768229439554,-1500.0,0.00014795,2]
[401448378,1768229439563,-640.95571878,0.00014795,2]
[401448380,1768229439571,-1500.20677072,0.00014795,2]
[401448382,1768229439580,-1000.0,0.00015342,2]
[401448384,1768229439589,-1000.0,0.00015385,2]
[401448386,1768229439598,-2617.53612397,0.00015791,2]
[401448388,1768229439607,-151.0,0.00015967,2]
[401448390,1768229439616,-151.0,0.00015967,2]
[401448392,1768229439625,-151.0,0.00015967,2]
[401448394,1768229439634,-151.0,0.00015967,2]
[401448396,1768229439643,-151.0,0.00015967,2]
[401448398,1768229439654,-247.170757,0.00015967,2]
[401448400,1768229439663,-1037.95,0.00015969,2]
[401448402,1768229439672,-100000.0,0.0001599,2]
[401448404,1768229439681,-999.0,0.00015994,2]
[401448406,1768229439691,-2206.76210412,0.00016059,2]
[401448408,1768229439700,-500.0,0.00016067,2]
[401448410,1768229439709,-500.0,0.00016069,2]
[401448412,1768229439718,-475.0,0.00016069,2]
[401448414,1768229439727,-68359.45486799,0.00016069,2]
[401448416,1768229439737,-2658.4303735,0.00016159,2]
[401448418,1768229439746,-8685.4227475,0.00016159,2]
[401448420,1768229439755,-151.0,0.00016438,2]
[401448422,1768229439764,-151.0,0.00016438,2]
[401448424,1768229439773,-151.0,0.00016438,2]
[401448426,1768229439783,-151.0,0.00016438,2]
[401448428,1768229439792,-151.0,0.00016438,2]
[401448430,1768229439802,-238.146796,0.00016438,2]
[401448432,1768229439811,-323.82213701,0.00016564,2]
[401448433,1768229439820,-11825.05735935,0.00016569,2]
[401448434,1768229439830,-621.45989654,0.00016641,2]
[401448435,1768229439840,-151.48350527,0.000168,2]
[401448436,1768229439849,-219.89071742,0.00017009,2]
[401448437,1768229439858,-879.56286967,0.00017009,2]
[401448438,1768229439868,-24646.78290519,0.0001701,3]
[401448439,1768229439878,-5000.0,0.00017412,2]
[401448440,1768229439887,-1979.01645675,0.00017433,2]
[401448441,1768229439896,-628.0,0.00017773,2]
[401448442,1768229439910,-1366.0,0.00017773,2]
[401448443,1768229439920,-2147.0,0.00017773,2]
[401448444,1768229439929,-417.0,0.00017773,2]
[401448445,1768229439938,-715.0,0.00017773,2]
[401448446,1768229439949,-3518.25147866,0.00017936,2]
[401448447,1768229439958,-778.0,0.00018,2]
[401448448,1768229439967,-2206.7621041,0.00018057,2]
[401448449,1768229439977,-5497.26793541,0.0001844,2]
[401448450,1768229439987,-1937.9797686,0.00018534,2]
[401448451,1768229439996,-366.68094927,0.00018564,2]
[401448452,1768229440006,-158.36,0.000187,2]
[401448453,1768229440015,-235.9,0.00018758,2]
[401448454,1768229440025,-1422.61891763,0.00018863,2]
[401448770,1768229445312,-791.2784889,0.00018863,2]
[401448776,1768229446286,-823.0,0.00018863,2]
[401448777,1768229446298,-1963.10259347,0.00018863,2]
[401448778,1768229446307,-303.10001603,0.000189,2]
[401448779,1768229446317,-3893.7973905,0.00018943,2]
[401448780,1768229446347,-4014.35237066,0.00018943,2]
[401448781,1768229446356,-432.4217361,0.00019064,2]
[401448782,1768229446366,-303.10001603,0.00019089,2]
[401448783,1768229446375,-2681.8732628,0.00019139,2]
[401448784,1768229446466,-558.62443404,0.00019139,2]
[401448792,1768229713316,914.0,0.00030136,120]
[401448808,1768230113700,500.0,0.00030136,120]
[401448809,1768230184583,586.05,0.00030137,120]
[401448860,1768230632520,-157.16330377,0.00013273,2]
[401448862,1768230632531,-608.0,0.00013273,2]
[401448864,1768230632540,-221.97611631,0.00013484,2]
[401448866,1768230632549,-338.30951572,0.0001408,2]
[401448922,1768230638637,-1971.51095744,0.0001408,2]
[401448924,1768230638649,-97724.88222044,0.0001408,2]
[401448926,1768230638658,-300.0,0.00014989,2]
[401448928,1768230638668,-1200.0,0.00014989,2]
[401448930,1768230638678,-100000.0,0.0001499,2]
[401448932,1768230638688,-8868.79301953,0.00015121,2]
[401448934,1768230638701,-877.9337676,0.00015221,2]
[401448936,1768230638711,-261.93181724,0.00015484,2]
[401448938,1768230638720,-5000.0,0.00015999,2]
[401448941,1768230638730,-641117.98745183,0.00016,2]
[401448944,1768230638739,-1324.05726246,0.00016338,2]
[401448946,1768230638748,-40951.24076447,0.00016428,2]
[401448948,1768230638758,-595.21270664,0.00016428,2]
[401448950,1768230638767,-229.99323856,0.00016428,2]
[401448952,1768230638777,-603.99384229,0.00016428,2]
[401448954,1768230638786,-500.0,0.00016428,2]
[401448956,1768230638797,-500.0,0.00016428,2]
[401448958,1768230638807,-500.0,0.00016428,2]
[401448960,1768230638816,-500.0,0.00016428,2]
[401448962,1768230638825,-500.0,0.00016428,2]
[401448964,1768230638835,-500.0,0.00016428,2]
[401448966,1768230638844,-500.0,0.00016428,2]
[401448968,1768230638853,-500.0,0.00016428,2]
[401448970,1768230638863,-397.51368421,0.00016428,2]
[401448972,1768230638872,-455.81053669,0.00016428,2]
[401448974,1768230638882,-500.0,0.00016428,2]
[401448976,1768230638892,-500.0,0.00016428,2]
[401448978,1768230638901,-500.0,0.00016428,2]
[401448980,1768230638911,-500.0,0.00016428,2]
[401448982,1768230638920,-500.0,0.00016428,2]
[401448984,1768230638929,-252.74849441,0.00016429,2]
[401448986,1768230638939,-587.92991363,0.00016429,2]
[401448988,1768230638949,-587.92991363,0.00016429,2]
[401448990,1768230638958,-587.92991363,0.00016429,2]
[401448992,1768230638967,-587.92991363,0.00016429,2]
[401448994,1768230638977,-602.31873975,0.00016429,2]
[401448996,1768230638986,-587.92991363,0.00016429,2]
[401448997,1768230638996,-587.92991363,0.00016429,2]
[401448999,1768230639005,-587.92991363,0.00016429,2]
[401449002,1768230639015,-587.92991363,0.00016429,2]
[401449004,1768230639025,-587.92991363,0.00016429,2]
[401449005,1768230639035,-587.92991363,0.00016429,2]
[401449008,1768230639045,-587.92991363,0.00016429,2]
[401449010,1768230639054,-587.92991363,0.00016429,2]
[401449012,1768230639064,-623.20570844,0.00016429,2]
[401449013,1768230639074,-623.20570844,0.00016429,2]
[401449016,1768230639083,-623.20570844,0.00016429,2]
[401449018,1768230639093,-623.20570844,0.00016429,2]
[401449019,1768230639102,-623.20570844,0.00016429,2]
[401449022,1768230639112,-623.20570844,0.00016429,2]
[401449023,1768230639122,-623.20570844,0.00016429,2]
[401449025,1768230639131,-652.94542807,0.00016429,2]
[401449027,1768230639143,-652.94542807,0.00016429,2]
[401449030,1768230639153,-652.94542807,0.00016429,2]
[401449032,1768230639162,-652.94542807,0.00016429,2]
[401449033,1768230639172,-652.94542807,0.00016429,2]
[401449035,1768230639181,-163208.63398817,0.0001643,2]
[401449037,1768230639190,-500.0,0.00016438,2]
[401449039,1768230639203,-424.42278225,0.00016438,2]
[401449041,1768230639212,-500.0,0.00016438,2]
[401449043,1768230639221,-500.0,0.00016438,2]
[401449045,1768230639231,-500.0,0.00016438,2]
[401449047,1768230639240,-500.0,0.00016438,2]
[401449049,1768230639250,-1680.0,0.00016488,2]
[401449051,1768230639261,-37393.7703286,0.00016531,2]
[401449052,1768230639271,-301.88751818,0.00017484,2]
[401449054,1768230639281,-155.37285609,0.00017748,2]
[401449055,1768230639290,-311.82793071,0.00017748,2]
[401449056,1768230639300,-1373.4799462,0.00018053,2]
[401449057,1768230639309,-2147.0,0.0001808,2]
[401449059,1768230639319,-1366.0,0.0001808,2]
[401449061,1768230639328,-628.0,0.0001808,2]
[401449063,1768230639339,-715.0,0.0001808,2]
[401449065,1768230639349,-197.827,0.0001808,2]
[401449067,1768230639358,-417.0,0.0001808,2]
[401449070,1768230639367,-417.0,0.0001808,2]
[401449072,1768230639376,-344.787517,0.00018199,2]
[401449073,1768230639385,-8868.79301951,0.0001824,2]
[401449075,1768230639395,-1324.05726246,0.00018266,2]
[401449077,1768230639404,-581.29615388,0.00018311,2]
[401449079,1768230639413,-775.0,0.000184,2]
[401449082,1768230639425,-21611.32097374,0.00018498,2]
[401449084,1768230639434,-151.0,0.00018498,2]
[401449086,1768230639444,-151.0,0.00018498,2]
[401449088,1768230639455,-151.0,0.00018498,2]
[401449090,1768230639464,-250.0,0.00018498,2]
[401449093,1768230639483,-250.0,0.00018498,2]
[401449095,1768230639494,-151.0,0.00018498,2]
[401449097,1768230639503,-250.0,0.00018498,2]
[401449099,1768230639513,-496.47127164,0.00018498,2]
[401449101,1768230639522,-151.0,0.00018498,2]
[401449103,1768230639531,-250.0,0.00018498,2]
[401449105,1768230639540,-151.0,0.00018498,2]
[401449107,1768230639551,-250.0,0.00018498,2]
[401449109,1768230639560,-151.0,0.00018498,2]
[401449111,1768230639569,-250.0,0.00018498,2]
[401449113,1768230639578,-151.0,0.00018498,2]
[401449115,1768230639587,-151.0,0.00018498,2]
[401449117,1768230639596,-250.0,0.00018498,2]
[401449119,1768230639606,-181.08010149,0.00018498,2]
[401449121,1768230639615,-151.0,0.00018498,2]
[401449123,1768230639624,-250.0,0.00018498,2]
[401449125,1768230639634,-151.0,0.00018498,2]
[401449127,1768230639644,-272.03607875,0.00018498,2]
[401449129,1768230639654,-187.78006525,0.00018498,2]
[401449131,1768230639663,-163.79209166,0.00018498,2]
[401449133,1768230639673,-250.0,0.00018498,2]
[401449135,1768230639682,-194.72792766,0.00018498,2]
[401449137,1768230639691,-151.0,0.00018498,2]
[401449139,1768230639703,-250.0,0.00018498,2]
[401449141,1768230639712,-201.93286099,0.00018498,2]
[401449143,1768230639722,-250.0,0.00018498,2]
[401449145,1768230639731,-151.0,0.00018498,2]
[401449147,1768230639740,-2398.4119403,0.00018498,2]
[401449149,1768230639749,-209.40437684,0.00018498,2]
[401449151,1768230639759,-250.0,0.00018498,2]
[401449153,1768230639768,-151.0,0.00018498,2]
[401449155,1768230639777,-217.15233878,0.00018498,2]
[401449157,1768230639787,-1500.0,0.00018498,2]
[401449159,1768230639796,-250.0,0.00018498,2]
[401449161,1768230639806,-151.0,0.00018498,2]
[401449163,1768230639815,-225.18697532,0.00018498,2]
[401449165,1768230639824,-250.0,0.00018498,2]
[401449167,1768230639833,-151.0,0.00018498,2]
[401449169,1768230639842,-250.0,0.00018498,2]
[401449171,1768230639851,-1500.0,0.00018498,2]
[401449173,1768230639861,-233.51889341,0.00018498,2]
[401449175,1768230639871,-250.0,0.00018498,2]
[401449178,1768230639881,-244.79769918,0.00018498,2]
[401449180,1768230639890,-250.0,0.00018498,2]
[401449182,1768230639899,-1500.0,0.00018498,2]
[401449184,1768230639908,-255.9181721,0.00018498,2]
[401449186,1768230639917,-242.15909246,0.00018498,2]
[401449188,1768230639927,-250.0,0.00018498,2]
[401449190,1768230639936,-250.0,0.00018498,2]
[401449192,1768230639945,-1500.0,0.00018498,2]
[401449194,1768230639955,-250.0,0.00018498,2]
[401449196,1768230639964,-251.11897888,0.00018498,2]
[401449198,1768230639973,-250.0,0.00018498,2]
[401449200,1768230639982,-1500.0,0.00018498,2]
[401449202,1768230639991,-250.0,0.00018498,2]
[401449204,1768230640000,-250.0,0.00018498,2]
[401449205,1768230640010,-260.4103811,0.00018498,2]
[401449208,1768230640019,-1500.0,0.00018498,2]
[401449210,1768230640029,-250.0,0.00018498,2]
[401449212,1768230640039,-250.0,0.00018498,2]
[401449213,1768230640048,-270.0455652,0.00018498,2]
[401449216,1768230640059,-1500.0,0.00018498,2]
[401449218,1768230640069,-151.0,0.00018498,2]
[401449219,1768230640078,-250.0,0.00018498,2]
[401449220,1768230640086,-250.0,0.00018498,2]
[401449221,1768230640095,-280.03725112,0.00018498,2]
[401449222,1768230640104,-1500.0,0.00018498,2]
[401449223,1768230640113,-250.0,0.00018498,2]
[401449224,1768230640123,-250.0,0.00018498,2]
[401449225,1768230640131,-151.0,0.00018498,2]
[401449226,1768230640141,-290.39862941,0.00018498,2]
[401449227,1768230640150,-250.0,0.00018498,2]
[401449228,1768230640159,-250.0,0.00018498,2]
[401449229,1768230640168,-1500.0,0.00018498,2]
[401449230,1768230640177,-151.0,0.00018498,2]
[401449231,1768230640187,-301.1433787,0.00018498,2]
[401449232,1768230640196,-250.0,0.00018498,2]
[401449233,1768230640208,-1500.0,0.00018498,2]
[401449234,1768230640217,-151.0,0.00018498,2]
[401449235,1768230640227,-271.32439801,0.00018498,2]
[401449236,1768230640236,-1500.0,0.00018498,2]
[401449237,1768230640245,-151.0,0.00018498,2]
[401449238,1768230640256,-151.0,0.00018498,2]
[401449239,1768230640270,-1500.0,0.00018498,2]
[401449240,1768230640279,-151.0,0.00018498,2]
[401449241,1768230640288,-1500.0,0.00018498,2]
[401449242,1768230640297,-151.0,0.00018498,2]
[401449243,1768230640309,-151.0,0.00018498,2]
[401449257,1768230640318,-1500.0,0.00018498,2]
[401449260,1768230640453,-151.0,0.00018498,2]
[401449263,1768230640464,-151.0,0.00018498,2]
[401449266,1768230640473,-1500.0,0.00018498,2]
[401449269,1768230640482,-151.0,0.00018498,2]
[401449272,1768230640492,-151.0,0.00018498,2]
[401449275,1768230640502,-151.0,0.00018498,2]
[401449278,1768230640512,-151.0,0.00018498,2]
[401449281,1768230640521,-2071.02555341,0.00018498,2]
[401449284,1768230640531,-151.0,0.00018498,2]
[401449287,1768230640541,-151.0,0.00018498,2]
[401449290,1768230640550,-151.0,0.00018498,2]
[401449292,1768230640559,-151.0,0.00018498,2]
[401449294,1768230640569,-151.0,0.00018498,2]
[401449297,1768230640579,-151.0,0.00018498,2]
[401449300,1768230640589,-151.0,0.00018498,2]
[401449303,1768230640598,-151.0,0.00018498,2]
[401449306,1768230640607,-151.0,0.00018498,2]
[401449309,1768230640616,-151.0,0.00018498,2]
[401449312,1768230640626,-151.0,0.00018498,2]
[401449315,1768230640635,-216.3,0.00018565,2]
[401449318,1768230640644,-104422.68154787,0.00018798,2]
[401449320,1768230640653,-2924.3817078,0.00018868,2]
[401449321,1768230640663,-8343.6779619,0.0001896,2]
[401449324,1768230640673,-216.3,0.00018968,2]
[401449326,1768230640684,-514.84070869,0.00019046,2]
[401449328,1768230640694,-2487.15318209,0.00019046,2]
[401449330,1768230640706,-297.43886801,0.00019046,2]
[401449332,1768230640717,-5000.0,0.00019178,2]
[401449334,1768230640726,-5000.0,0.00019178,2]
[401449336,1768230640735,-5000.0,0.00019178,2]
[401449337,1768230640744,-1105.86751871,0.00019198,2]
[401449340,1768230640754,-156.51,0.000192,2]
[401449342,1768230640763,-2600.61,0.000192,2]
[401449344,1768230640772,-159.91,0.000192,2]
[401449345,1768230640781,-216.3,0.00019371,2]
[401449347,1768230640791,-341.84321911,0.00019484,2]
[401449349,1768230640800,-1861.7261998,0.00019502,2]
[401449351,1768230640809,-500.0,0.00019526,7]
[401449353,1768230640819,-533.88981491,0.00019594,2]
[401449355,1768230640828,-2579.17784983,0.00019594,2]
[401449357,1768230640838,-250.0,0.00019726,2]
[401449360,1768230640848,-216.3,0.00019775,2]
[401449362,1768230640859,-20406.09208908,0.0001995,2]